Cogmind - Beta 11 @@@ ROGUE MODE // 2022.04.08 @ 09:33:10 Player: Happytimes Result: Self-destructed Performance ------------- Evolutions (0) 0 Regions Visited (4) 800 Robots Destroyed (5) 25 Value Destroyed (111) 111 Prototype IDs (4) 80 Alien Tech Used (0) 0 Bonus (300) 300 TOTAL SCORE: 1316 Bonus ------- Aligned with FarCom 300 Cogmind --------- Core Integrity 199/250 Matter 250/300 Energy 79/125 System Corruption 0% Temperature Cool (20) Movement Rolling (90) Location -9/Mines Parts ------- > --- POWER (1) -------- Light Ion Engine > --- PROPULSION (2) --- Wheel Compact Wheel > --- UTILITY (2) ------ Small Storage Unit > --- WEAPON (2) ------- Medium Laser Particle Gun > --- INVENTORY (8) ---- Ion Engine Small Storage Unit Medium Storage Unit Cloak of Protection Medium Laser Mining Laser Mining Laser Peak State ------------ > --- POWER ------------ Light Ion Engine > --- PROPULSION ------- Wheel Compact Wheel > --- UTILITY ---------- Small Storage Unit Experimental Sensor Array > --- WEAPON ----------- Firepult > --- INVENTORY -------- Ion Engine Small Storage Unit Medium Storage Unit Medium Laser Mining Laser Mining Laser [Rating: 33] Favorites ----------- Power Light Ion Engine Engine Light Ion Engine Propulsion Wheel Wheel Wheel Utility Small Storage Unit Device Experimental Sensor Array Storage Small Storage Unit Processor Signal Interpreter Weapon Medium Laser Energy Gun Medium Laser Energy Cannon Firepult Build | -11 -10 -10 -10 -9 ------- Run | Scr Mat Min Exi Min Slots Evolved . | . . . . . Power . | . . . . . Propulsion . | . . . . . Utility . | . . . . . Weapon . | . . . . . Parts Attached 16 | 6 1 3 5 1 Power 2 | 1 . 1 . . Engine 2 | 1 . 1 . . Core . | . . . . . Reactor . | . . . . . Propulsion 2 | 2 . . . . Treads . | . . . . . Leg . | . . . . . Wheel 2 | 2 . . . . Hover . | . . . . . Flight . | . . . . . Utility 6 | 1 1 1 2 1 Device 3 | . . 1 1 1 Storage 1 | 1 . . . . Processor 2 | . 1 . 1 . Hackware . | . . . . . Protection . | . . . . . Artifact . | . . . . . Weapon 6 | 2 . 1 3 . Energy Gun 5 | 2 . 1 2 . Energy Cannon 1 | . . . 1 . Ballistic Gun . | . . . . . Ballistic Cannon . | . . . . . Launcher . | . . . . . Special Weapon . | . . . . . Impact Weapon . | . . . . . Slashing Weapon . | . . . . . Piercing Weapon . | . . . . . Special Melee Weapon . | . . . . . Unidentified Prototypes 4 | . . 1 3 . Parts Lost . | . . . . . Power . | . . . . . Propulsion . | . . . . . Utility . | . . . . . Weapon . | . . . . . Highest Loss Streak . | . . . . . To Critical Strikes . | . . . . . Average Slot Usage (%) 94 | . 97 100 90 88 Engine 14 | . 14 14 14 14 Wheel 28 | . 28 28 28 28 Device 4 | . . 4 7 2 Storage 14 | . 14 14 14 14 Processor 5 | . 11 9 . . Energy Gun 26 | . 28 28 25 28 Naked Turns . | . . . . . Heaviest Build 21 | 14 14 15 14 21 Greatest Support 26 | 26 26 26 26 26 Greatest Overweight (x) . | . . . . . Average Overweight (x) . | . . . . . Largest Inventory Capacity 8 | 8 8 8 8 8 Average Capacity 7 | 6 8 8 8 8 Most Carried 8 | 5 5 7 8 7 Average Carried 4 | 1 1 5 6 6 Final Capacity 8 | 8 8 8 8 8 Final Carried 7 | . 5 6 7 7 Class Distribution -------------------- 100% | Mutant Dominant Class ---------------- Mutant | -10/Materials Mutant | -10/Mines Mutant | -10/Exiles Mutant | -9/Mines Resources | -11 -10 -10 -10 -9 ----------- Run | Scr Mat Min Exi Min Matter Collected 310 | 236 34 10 . 30 Remotely . | . . . . . Salvage Created 126 | . 74 52 . . Parts 7 | . 1 6 . . Haulers Intercepted . | . . . . . Recyclers Shooed . | . . . . . Parts Field Recycled . | . . . . . Retrieved Matter . | . . . . . Parts Self-Destructed . | . . . . . Prevented . | . . . . . Kills | -11 -10 -10 -10 -9 ------- Run | Scr Mat Min Exi Min Combat Hostiles Destroyed 5 | . 2 3 . . Guns 5 | . 2 3 . . Classes Destroyed 2 | . 1 1 . . Swarmer 3 | . . 3 . . Grunt 2 | . 2 . . . Best Kill Streak 3 | . 1 3 . . Combat Bots Only 3 | . 1 3 . . Max Kills in Single Turn 1 | . 1 1 . . Gunslinging . | . . . . . Exploded . | . . . . . Melee . | . . . . . Uniques/NPCs Destroyed . | . . . . . Combat | -11 -10 -10 -10 -9 -------- Run | Scr Mat Min Exi Min Damage Taken 214 | . 70 76 . 68 Core 51 | . 10 17 . 24 Absorbed by Shields . | . . . . . Core Remaining (%) 100 | 100 . . . . Volleys Fired 10 | . 6 4 . . Largest 2 | . 2 2 . . Hottest 115 | . 100 115 . . Shots Fired 20 | . 12 8 . . Gun 20 | . 12 8 . . Cannon . | . . . . . Launcher . | . . . . . Special . | . . . . . Kinetic . | . . . . . Thermal 20 | . 12 8 . . Explosive . | . . . . . Electromagnetic . | . . . . . Robot Hit Streak 5 | . 5 3 . . Robot Miss Streak 2 | . 1 2 . . Penetration Max . | . . . . . Secondary Targets . | . . . . . Shots Hit Robots 15 | . 10 5 . . Core Hits 8 | . 5 3 . . Critical Kills . | . . . . . Critical Parts Destroyed . | . . . . . Critical Strikes 1 | . 1 . . . Burn 1 | . 1 . . . Melee Attacks . | . . . . . Impact . | . . . . . Slashing . | . . . . . Piercing . | . . . . . Sneak Attacks . | . . . . . Combat Hostiles . | . . . . . Follow-up Attacks . | . . . . . Damage Inflicted 190 | . 125 65 . . Guns 190 | . 125 65 . . Cannons . | . . . . . Explosions . | . . . . . Melee . | . . . . . Ramming . | . . . . . Kinetic . | . . . . . Thermal 190 | . 125 65 . . Explosive . | . . . . . Electromagnetic . | . . . . . Impact . | . . . . . Slashing . | . . . . . Piercing . | . . . . . Highest Corruption . | . . . . . Average Corruption . | . . . . . Corruption Purged . | . . . . . Corruption Blocked . | . . . . . Overload Shots . | . . . . . Overflow Damage . | . . . . . Projectiles . | . . . . . Explosions . | . . . . . Melee . | . . . . . Knockbacks . | . . . . . Impact . | . . . . . Kinetic . | . . . . . Secondary . | . . . . . Self-Inflicted Damage . | . . . . . Shots . | . . . . . Rammed . | . . . . . Targets Rammed . | . . . . . Kicked . | . . . . . Crushed . | . . . . . Highest Temperature 216 | . 186 216 . . Average Temperature 93 | . 80 112 . . Received Heat Transfer 79 | . 39 . . 40 Siege Activations . | . . . . . Robots Corrupted . | . . . . . Combat Hostiles . | . . . . . Parts Fried . | . . . . . Impact Corruptions . | . . . . . Robots Melted . | . . . . . Combat Hostiles . | . . . . . Parts Melted 1 | . 1 . . . Heat Transferred 629 | . 444 185 . . Parts Sabotaged . | . . . . . Parts Stolen . | . . . . . Parts Stripped . | . . . . . Power Chain Reactions . | . . . . . Missiles Intercepted . | . . . . . Alert | -11 -10 -10 -10 -9 ------- Run | Scr Mat Min Exi Min Peak Influence 116 | . 80 116 . 15 Initial 31 | . . 31 . . Average 48 | . 36 111 . 5 Maximum Alert Level . | . . . . . Low Security (%) 100 | 100 100 100 . 100 Level 1 . | . . . . . Level 2 . | . . . . . Level 3 . | . . . . . Level 4 . | . . . . . Level 5 . | . . . . . High Security . | . . . . . Max Security . | . . . . . Squads Dispatched 2 | . 2 . . . Investigation 1 | . 1 . . . Extermination . | . . . . . Reinforcement 1 | . 1 . . . Assault . | . . . . . Garrison . | . . . . . Intercept . | . . . . . Searches Triggered . | . . . . . Construction Impeded . | . . . . . Haulers Reinforced . | . . . . . Active Scanning Responses . | . . . . . Cargo Convoy Interrupts . | . . . . . Stealth | -11 -10 -10 -10 -9 --------- Run | Scr Mat Min Exi Min Distress Signals . | . . . . . Communications Jammed . | . . . . . Distress Signals . | . . . . . Times Spotted 19 | . 4 3 . 12 Peak Tracking Total 20 | . 3 2 . 20 Tactical Retreats . | . . . . . Traps | -11 -10 -10 -10 -9 ------- Run | Scr Mat Min Exi Min Traps Triggered . | . . . . . Indirectly . | . . . . . Trap Hack Attempts . | . . . . . Triggered . | . . . . . Disarmed . | . . . . . Reprogrammed . | . . . . . Reused . | . . . . . Traps Extracted . | . . . . . Installed . | . . . . . Triggered . | . . . . . Machines | -11 -10 -10 -10 -9 ---------- Run | Scr Mat Min Exi Min Machines Disabled . | . . . . . Max in Single Turn . | . . . . . Machines Sabotaged . | . . . . . Garrisons Compromised . | . . . . . Overloaded Fab Kills . | . . . . . Hacking | -11 -10 -10 -10 -9 --------- Run | Scr Mat Min Exi Min Machines Accessed 1 | . 1 . . . Terminals 1 | . 1 . . . Fabricators . | . . . . . Repair Stations . | . . . . . Recycling Units . | . . . . . Scanalyzers . | . . . . . Garrison Access . | . . . . . Total Hacks 3 | . 3 . . . Successful 1 | . 1 . . . Failed 2 | . 2 . . . Catastrophic . | . . . . . Database Lockouts . | . . . . . Manual 1 | . . . 1 . Terminals 3 | . 3 . . . Fabricators . | . . . . . Repair Stations . | . . . . . Recycling Units . | . . . . . Scanalyzers . | . . . . . Garrison Access . | . . . . . Terminal Hacks 1 | . 1 . . . Zone Layout 1 | . 1 . . . Fabricator Hacks . | . . . . . Repair Station Hacks . | . . . . . Recycling Unit Hacks . | . . . . . Scanalyzer . | . . . . . Garrison Access Hacks . | . . . . . Unauthorized Hacks . | . . . . . Terminals . | . . . . . Fabricators . | . . . . . Repair Stations . | . . . . . Recycling Units . | . . . . . Scanalyzers . | . . . . . Garrison Access . | . . . . . Data Cores Recovered . | . . . . . Used . | . . . . . Hacking Detections 1 | . 1 . . . Full Trace Events 1 | . 1 . . . Feedback Events . | . . . . . Feedback Blocked . | . . . . . Robot Schematics Acquired . | . . . . . Robots Built . | . . . . . Authchips . | . . . . . Time . | . . . . . Total Robot Build Rating . | . . . . . Part Schematics Acquired . | . . . . . Parts Built . | . . . . . Authchips . | . . . . . Time . | . . . . . Total Part Build Rating . | . . . . . Parts Repaired . | . . . . . Time . | . . . . . Parts Recycled . | . . . . . Recycled Matter . | . . . . . Retrieved Matter . | . . . . . Retrieved Components . | . . . . . Parts Scanalyzed . | . . . . . Part Schematics Acquired . | . . . . . Parts Damaged . | . . . . . Bothacking | -11 -10 -10 -10 -9 ------------ Run | Scr Mat Min Exi Min Used RIF Installer . | . . . . . Robots Hacked . | . . . . . Non-combat . | . . . . . Combat . | . . . . . Robot Hacks Applied . | . . . . . Relay Couplers Released . | . . . . . Fabnet Peak Effective % . | . . . . . Robots Rewired . | . . . . . Allies Hacked . | . . . . . Hacks Repelled . | . . . . . Allies | -11 -10 -10 -10 -9 -------- Run | Scr Mat Min Exi Min Total Allies . | . . . . . Largest Group . | . . . . . Highest-Rated Group . | . . . . . Highest-Rated Ally . | . . . . . Total Orders . | . . . . . Ally Attacks . | . . . . . Total Damage . | . . . . . Kills . | . . . . . Allies Corrupted . | . . . . . Allies Melted . | . . . . . Intel | -11 -10 -10 -10 -9 ------- Run | Scr Mat Min Exi Min Robot Analysis Total . | . . . . . Derelict Logs Recovered 1 | . . 1 . . Drone Launches . | . . . . . Drone Recoveries . | . . . . . Exploration | -11 -10 -10 -10 -9 ------------- Run | Scr Mat Min Exi Min Turns Passed 596 | 41 174 101 230 50 Spaces Moved 580 | 43 151 92 241 53 Core 23 | 23 . . . . Treads . | . . . . . Legs . | . . . . . Wheels 557 | 20 151 92 241 53 Hover . | . . . . . Flight . | . . . . . Fastest Speed 50 | 50 90 90 90 90 Average Speed 88 | 68 90 90 90 90 Slowest Speed 90 | 90 90 90 90 90 Overloaded Moves . | . . . . . Propulsion Burnouts . | . . . . . Robots Hopped . | . . . . . Cave-ins Triggered . | . . . . . Exploration Rate (%) 26 | 2 29 23 61 17 Regions Visited 4 Branch Regions 3 Pre-discovered Areas . | . . . . . Known Exits Taken 1 | . 1 . . . Unknown Exits Taken 3 | 1 . 1 1 . Scrap Searched 1 | . . . . 1 Spaces Dug . | . . . . . Terrain Destroyed . | . . . . . Melee . | . . . . . Projectile . | . . . . . AOE . | . . . . . Terrain Rammed . | . . . . . Walls Destroyed . | . . . . . Machines Disabled . | . . . . . Actions | -11 -10 -10 -10 -9 --------- Run | Scr Mat Min Exi Min Total 641 | 53 176 101 256 55 Wait 13 | . 13 . . . Move 576 | 42 150 91 240 53 Hop . | . . . . . Pick Up 18 | 5 6 2 5 . Fast Attach 2 | 1 . . 1 . Attach 12 | 5 1 1 4 1 Detach 1 | . . . . 1 Swap 2 | . . 2 . . Drop 7 | . . 1 6 . Fire 10 | . 6 4 . . Melee . | . . . . . Ram . | . . . . . Kick . | . . . . . Crush . | . . . . . Escape Stasis . | . . . . . Rewire . | . . . . . Trap . | . . . . . Miscellaneous . | . . . . . Route ------- -11/Scrapyard -10/Materials (discovered 2 exits: *Mat / *Min) -10/Mines -10/Exiles -9/Mines History --------- Turn | Location | Event 2 | -11/Scrapyard | Met Revision 17 17 | -11/Scrapyard | Discovered new exit (range 15) 42 | -11/Scrapyard | Entered Materials 101 | -10/Materials | Discovered new exit (range 12) 161 | -10/Materials | Identified exit to Materials 181 | -10/Materials | Discovered new exit (range 14) 206 | -10/Materials | Identified exit to Mines 216 | -10/Materials | Entered Mines 269 | -10/Mines | Learned location of 1 exit from Materials 277 | -10/Mines | Found a damaged Exp. Sensor Array with a note attached 282 | -10/Mines | Found Prototype Device 284 | -10/Mines | Identified Exp. Sensor Array 305 | -10/Mines | Build established: Mutant 311 | -10/Mines | Deemed a non-threat by the Exiles lab entrance 312 | -10/Mines | Discovered new exit (range 5) 317 | -10/Mines | Entered Exiles 342 | -10/Exiles | Met 8R-AWN 355 | -10/Exiles | Met EX-HEX 382 | -10/Exiles | Met EX-BIN 392 | -10/Exiles | Aligned with FarCom system 393 | -10/Exiles | Given EX-Vault access code 420 | -10/Exiles | Opened EX-Vault 424 | -10/Exiles | Found Prototype Energy Cannon 430 | -10/Exiles | Identified Firepult 434 | -10/Exiles | Found Prototype Device 436 | -10/Exiles | Identified Cloak of Protection 439 | -10/Exiles | Found Prototype Processor 440 | -10/Exiles | Identified 0b10 Alert Chip 471 | -10/Exiles | Warned to stay clear of 0b10 Research branches 498 | -10/Exiles | Met EX-DEC 540 | -10/Exiles | Discovered new exit (range 10) 547 | -10/Exiles | Left Exiles lab with Cloak of Protection 547 | -10/Exiles | Entered Mines 557 | -9/Mines | Met a Derelict bent on vengeance 577 | -9/Mines | Assembled infested the area 597 | -9/Mines | Self-destructed Last Messages --------------- And if we have to leave here due to unforeseen circumstances, don't worry the FarCom system will continue to maintain contact via our distributed network. EX-BIN: And don't even think about spreading that code around. We're gonna change it right after you leave. Most certainly not to something like 1234 which I did last time as a little joke and some thief managed to sneak in here and steal a few of HEX's prototypes. EX-DEC: Ah I see we have a visitor. One wrong move in here and I'll invert your atomic chain! 00500_ EX-DEC: "Oops, I hope HEX didn't hear that..." 00540_ EXIT=FOUND LOCATION=UNKNOWN GOAL=ESCAPE 00547_ Receiving FarCom transmissions... 00577_ ALERT: Infestation in the mines, dispatching Demolisher response squad. 00590_ Searching scrap... 00590_ Found Salvage Targeting Computer. 00590_ Found 30 Matter. 00591_ Acquired 30 matter. Map ----- +----------------------------------------------------+ | | | ?????????????????????????????????????????????????? | | ?????????????????????????????????????????????????? | | ?????????????????????????????????????????????????? | | ?????????????????????????????????????????????????? | | ?????????????????????????????????????????????????? | | ?????????????????????????????????????????????????? | | ?????????????????###########???????????###???????? | | ?????????????????# #??????????# ##??????? | | ?????????????????# ####### #?????????# ##?????? | | ?????????????????# #?????# #????????# ##????? | | ?????????????????# #?????# #???????? ##???? | | ?????????????????# #?????# #??????## #???? | | ?????????????????# #?????# #?????## ##??? | | ?????????????????# #?????# ####### #??? | | ????????????????## #?????# #?? | | ???????????????## ##????###### ## #? | | ?????????????### #?????????# ### #? | | ????????????## #????###### #?## ## # | | ????????????# ####????# a #???# # #???? | | ???????????# ##???????#!a#####???? ##? #??????? | | ?????????? #????????#aa#???????? #???#??????? | | ???????? ##????????# a#????????? ??????????? | | ?????? ##??????#### #????????? ??????????? | | ???? #???###### #?????????##?????????? | | ???##### ##????# @ #????????????????????? | | ???????## #?????# """" #???????????????????? | | ????????# ???????? """" ##???????????????????? | | ????????#??????????"""" ##????????????????????? | | ??????????????????? ###?????????????????????? | | ?????????????????? ###????????????????????????? | | ????????????????? #???????????????????????????? | | ???????????????? #????????????????????????????? | | ????????????????# ?????????????????????????????? | | ????????????????###??????C???????????????????????? | | ?????????????????????????????????????????????????? | | ?????????????????????????????????????????????????? | | ?????????????????????????????????????????????????? | | ?????????????????????????????????????????????????? | | ?????????????????????????????????????????????????? | | ?????????????????????????????????????????????????? | | ?????????????????????????????????????????????????? | | ?????????????????????????????????????????????????? | | ?????????????????????????????????????????????????? | | ?????????????????????????????????????????????????? | | ?????????????????????????????????????????????????? | | ?????????????????????????????????????????????????? | | ?????????????????????????????????????????????????? | | ?????????????????????????????????????????????????? | | ?????????????????????????????????????????????????? | +----------------------------------------------------+ Best States ------------- Heat Dissipation 25 Energy Generation 10 Energy Capacity 250 Matter Stores 300 Matter Capacity 300 Sight Range 16 Robot Scan Range 20 Terrain Scan Density 10 Cloak Strength 5 Evasion (%) 50 Item Schematics ----------------- None Robot Schematics ------------------ None Fabricated ------------ Nothing Alien Tech Used ----------------- None Achievements -------------- None Challenges ------------ None Game ------ Seed HellfireMyomerClaymores Manual? 0 Play Time 00:03:48 Cumulative 46.6 hours Start 2022.04.04 @ 07:08:04 End 2022.04.08 @ 09:33:10 Sessions 2 Manual Loads 0 Difficulty Rogue Special Mode None Game No. 146 Rogue 146 Adventurer 0 Explorer 0 Win Type - Total 0 Types 0/0/0/0/0/0/0/0/0 Lore% 32 Gallery% 46 Achievement% 37 Wizard Run 0 Options --------- ASCII 0 Keyboard 0 Movement Mouse Keybinds 0 Fullscreen 1 Font 18/SmallcapsGlow Map View 76x50 Tactical HUD 1 Map Filters NONE Filters NONE Steam 1 RUN: 224c079b-57db-4e36-8c63-16a69691630b